[Event "Teplice Open 2022"]
[Site "Teplice"]
[Date "2022.06.25"]
[Round "8.2"]
[White "Karthik Venkataraman"]
[Black "Santos Latasa, Jaime"]
[Result "1/2-1/2"]
[ECO "B52"]
[WhiteElo "2480"]
[BlackElo "2672"]
[Annotator "ChessBase"]
[PlyCount "67"]
[EventDate "2022.06.18"]
[EventType "swiss"]
[EventCountry "CZE"]
[SourceTitle "playchess.com"]
[Source "ChessBase"]
[SourceQuality "1"]
[TimeControl "40/5400+30:1800+30"]

1. e4 {[%emt 0:01:56]} c5 {[%emt 0:00:10]} 2. Nf3 {[%emt 0:00:06]} d6 {[%emt 0:00:03]} 3. Bb5+ {[%emt 0:00:04]} Bd7 {[%emt 0:00:28]} 4. Bxd7+ {[%emt 0:00:18]} Nxd7 {[%emt 0:00:08]} 5. O-O {[%emt 0:00:25]} Ngf6 {[%emt 0:00:05]} 6. Qe2 {[%emt 0:00:06]} Rc8 {[%emt 0:00:11]} 7. c3 {[%emt 0:04:13]} e6 {[%emt 0:00:07]} 8. d4 {[%emt 0:00:38]} cxd4 {[%emt 0:00:09]} 9. cxd4 {[%emt 0:00:06]} Be7 {[%emt 0:00:07]} 10. Nc3 {[%emt 0:01:38]} Nb6 {[%emt 0:00:05]} 11. a4 {[%emt 0:09:58]} O-O {[%emt 0:06:29]} 12. Bf4 {[%emt 0:06:00]} d5 {[%emt 0:05:14]} 13. e5 {[%emt 0:01:41]} Nfd7 {[%emt 0:00:07]} 14. Qd3 {[%emt 0:08:48]} Nc4 {[%emt 0:01:15]} 15. b3 {[%emt 0:01:13]} Na5 {[%emt 0:00:07]} 16. Ne2 {[%emt 0:00:21]} Nb8 {[%emt 0:08:02]} 17. Bd2 {[%emt 0:01:58]} Nbc6 {[%emt 0:00:32]} 18. Rfc1 {[%emt 0:01:51]} Qb6 {[%emt 0:10:41]} 19. Rab1 {[%emt 0:00:14]} Nb4 {[%emt 0:02:24]} 20. Qb5 {[%emt 0:04:38]} Rc6 {[%emt 0:09:42]} 21. Bxb4 {[%emt 0:04:12]} Bxb4 {[%emt 0:00:17]} 22. Qd3 {[%emt 0:03:04]} h6 {[%emt 0:01:37]} 23. g4 {[%emt 0:04:58]} Rxc1+ {[%emt 0:04:29]} 24. Rxc1 {[%emt 0:00:54]} Be7 {[%emt 0:00:06]} 25. Rc3 {[%emt 0:00:57]} Qd8 {[%emt 0:02:59]} 26. Kg2 {[%emt 0:02:24]} a6 {[%emt 0:00:19]} 27. Kg3 {[%emt 0:03:01]} Nc6 {[%emt 0:00:21]} 28. h4 {[%emt 0:01:23]} g6 {[%emt 0:11:29]} 29. Nf4 {[%emt 0:02:33]} Qe8 {[%emt 0:00:07]} 30. Qe3 {[%emt 0:02:42]} Kg7 {[%emt 0:01:34]} 31. Nd3 {[%emt 0:01:09]} a5 {[%emt 0:01:58]} 32. Kg2 {[%emt 0:04:03]} Qd7 {[%emt 0:02:30]} 33. Nc5 {[%emt 0:00:41]} Qc7 {[%emt 0:00:44]} 34. Nd3 {[%emt 0:12:20]} 1/2-1/2

[Event "Teplice Open 2022"]
[Site "Teplice"]
[Date "2022.06.25"]
[Round "8.3"]
[White "Demchenko, Anton"]
[Black "Iniyan, P."]
[Result "1/2-1/2"]
[ECO "C50"]
[WhiteElo "2654"]
[BlackElo "2518"]
[Annotator "TA"]
[PlyCount "69"]
[EventDate "2022.06.18"]
[EventType "swiss"]
[EventCountry "CZE"]
[SourceTitle "playchess.com"]
[Source "ChessBase"]
[SourceQuality "1"]
[TimeControl "40/5400+30:1800+30"]

{[%evp 10,69,12,4,17,14,22,8,18,5,11,0,30,16,23,6,25,19,20,12,9,13,17,17,17,13,17,13,25,27,19,0,0,0,0,0,0,-25,-19,-56,-20,-40,-31,-36,-37,-27,-33,-106,0,0,0,0,0,0,0,0,0,0,0,0,0,0]} 1. e4 {[%emt 0:00:07]} e5 {[%emt 0:11:51]} 2. Nf3 {[%emt 0:00:05]} Nc6 {[%emt 0:00:07]} 3. Bc4 {[%emt 0:00:27]} Bc5 {[%emt 0:00:07]} 4. d3 {[%emt 0:00:08]} Nf6 {[%emt 0:00:09]} 5. Nc3 {[%emt 0:00:48]} h6 {[%emt 0:01:05]} 6. O-O {[%emt 0:00:45]} a6 {[%emt 0:00:07] 6...0-0 is a critical line. C50: Hungarian Defence and Giuoco Pianissimo.} 7. Be3 {[%emt 0:00:42]} Bxe3 {[%emt 0:00:48]} 8. fxe3 {[%emt 0:00:02]} d6 {[%emt 0:00:13]} 9. a4 {[%emt 0:07:09]} Be6 {[%emt 0:10:15] [#]} 10. b3 $146 {[%emt 0:01:16]} ({Predecessor:} 10. Nd2 Bxc4 11. Nxc4 Ne7 12. Qf3 Qd7 13. h3 O-O 14. a5 Qe6 15. Rf2 d5 16. exd5 Nexd5 {1-0 (37) Bauer,T (2171)-Piringer,F (2124) Austria 2019}) 10... d5 {[%emt 0:07:00]} 11. exd5 {[%emt 0:00:21]} Nxd5 {[%emt 0:00:12]} 12. Qd2 {[%emt 0:05:39]} Qd7 {[%emt 0:03:18]} 13. Nxd5 {[%emt 0:22:09]} Bxd5 {[%emt 0:00:38]} 14. Qc3 {[%emt 0:00:02]} Qd6 {[%emt 0:10:10]} 15. Nh4 {[%emt 0:20:42][%cal Bf3h4,Bh4f5,Bf5g3,Bg3e2][%mdl 32] [#] Black must now prevent Nf5.} Qb4 {[%emt 0:01:35]} 16. Qxb4 {[%emt 0:03:11]} Nxb4 {[%emt 0:00:08]} 17. Bxd5 {[%emt 0:03:07]} Nxd5 {[%emt 0:00:13]} 18. Nf5 {[%emt 0:01:57]} Rg8 {[%emt 0:02:29]} 19. a5 {[%emt 0:00:41]} Ne7 {[%emt 0:00:59]} 20. Ng3 {[%emt 0:06:53]} f6 {[%emt 0:00:08][%cal Bf7f6,Bf6f5,Bf5f4][%mdl 32]} 21. Kf2 {[%emt 0:01:50]} f5 {[%emt 0:03:40]} 22. e4 {[%emt 0:07:42]} f4 {[%emt 0:00:32]} 23. Ne2 {[%emt 0:00:05]} g5 {[%emt 0:01:20]} 24. g4 {[%emt 0:03:38]} h5 {[%emt 0:02:37]} 25. Rg1 {[%emt 0:01:07]} Rh8 {[%emt 0:00:24]} 26. gxh5 {[%emt 0:05:32]} Rxh5 {[%emt 0:00:07]} 27. Rg2 {[%emt 0:00:02]} Kf7 {[%emt 0:06:00]} 28. Ng1 {[%emt 0:00:29] [#]} (28. Rag1 $1 $15) 28... g4 {[%emt 0:09:54]} ({Black should try} 28... Rg8 $1 $17 {Hoping for ...g4.} 29. h3 Kf6) 29. Rxg4 $11 {[%emt 0:00:16] aiming for h4. The position is equal.} Rxh2+ {[%emt 0:00:07]} 30. Rg2 {[%emt 0:00:03]} Rxg2+ {[%emt 0:03:58]} 31. Kxg2 {[%emt 0:00:37]} c5 {[%emt 0:01:59]} 32. Nf3 {[%emt 0:00:30]} Nc6 {[%emt 0:00:46]} 33. Rh1 {[%emt 0:00:28]} Kg6 {[%emt 0:00:11] Prevents Rh7.} 34. Kf2 {[%emt 0:01:16]} Re8 {[%emt 0:00:24]} 35. Nh4+ {[%emt 0:04:05] Weighted Error Value: White=0.08 (flawless) /Black=0.10 (very precise)} 1/2-1/2

[Event "Teplice Open 2022"]
[Site "Teplice"]
[Date "2022.06.25"]
[Round "8.4"]
[White "Ali Marandi, Cemil Can"]
[Black "Sanal, Vahap"]
[Result "1-0"]
[ECO "B51"]
[WhiteElo "2532"]
[BlackElo "2575"]
[Annotator "TA"]
[PlyCount "69"]
[EventDate "2022.06.18"]
[EventType "swiss"]
[EventCountry "CZE"]
[SourceTitle "playchess.com"]
[Source "ChessBase"]
[SourceQuality "1"]
[TimeControl "40/5400+30:1800+30"]

{[%evp 9,69,8,3,0,10,8,12,14,20,33,32,42,72,72,72,72,78,72,104,110,100,74,72,56,68,47,56,48,63,52,60,66,75,79,87,59,85,66,107,95,243,250,441,432,482,511,487,440,613,581,634,622,616,603,2322,2295,2079,1754,2052,945,2636,1147]} 1. e4 {[%emt 0:00:03]} c5 {[%emt 0:00:41]} 2. Nf3 {[%emt 0:00:22][%cal Bg1f3,Bf3d4,Bd4f5,Bf5e3,Be3c4][%mdl 32]} d6 {[%emt 0:00:36]} 3. Bb5+ {[%emt 0:00:06]} Nd7 {[%emt 0:00:08]} 4. d4 {[%emt 0:00:14]} cxd4 {[%emt 0:00:13]} 5. Nxd4 {[%emt 0:00:07]} Ngf6 {[%emt 0:00:32]} 6. O-O {[%emt 0:00:12] B51: Sicilian: Moscow Variation (3 Bb5+) without 3...Bd7.} a6 {[%emt 0:00:08]} 7. Bd3 {[%emt 0:00:05]} Nc5 {[%emt 0:00:10]} 8. Nc3 {[%emt 0:00:17] The position is equal.} e5 {[%emt 0:01:44]} 9. Nf5 {[%emt 0:00:48] [#]} Be6 $146 {[%emt 0:09:13]} ({Predecessor:} 9... d5 10. Bg5 dxe4 11. Bxe4 Ncxe4 12. Nxg7+ Bxg7 13. Qxd8+ Kxd8 14. Nxe4 Ke7 15. f4 Ke6 {1-0 (78) Praggnanandhaa,R (2642)-Wei,Y (2727) chess24.com INT 2022}) 10. Bg5 {[%emt 0:01:40]} h6 {[%emt 0:01:02]} 11. Bxf6 {[%emt 0:04:38]} Qxf6 {[%emt 0:00:06]} 12. Ne3 {[%emt 0:00:51] Against d5} Qd8 {[%emt 0:05:29]} 13. Bc4 {[%emt 0:00:57]} Bxc4 {[%emt 0:11:54]} 14. Nxc4 {[%emt 0:00:08]} Rc8 {[%emt 0:00:39][%cal Oc5e4]} 15. Ne3 {[%emt 0:07:50]} g6 {[%emt 0:01:11]} 16. Qf3 {[%emt 0:13:08]} Bg7 {[%emt 0:01:57]} 17. Rad1 {[%emt 0:00:26]} O-O {[%emt 0:02:53]} 18. Ncd5 {[%emt 0:03:09]} Kh8 {[%emt 0:01:23]} 19. c3 {[%emt 0:01:46]} b5 {[%emt 0:07:08]} 20. g3 {[%emt 0:02:03][%cal Bg2g3,Bg3g4,Bg4h5,Bh5g6][%mdl 32]} Rb8 {[%emt 0:03:21]} 21. h4 {[%emt 0:01:54]} h5 {[%emt 0:05:28]} 22. Kg2 {[%emt 0:03:12]} Rb7 {[%emt 0:02:04]} 23. Rh1 {[%emt 0:10:24]} Kg8 {[%emt 0:00:59]} 24. g4 {[%emt 0:07:17] White is more active.} Qc8 {[%emt 0:13:23] This costs Black the game.} (24... hxg4 $16 25. Qxg4 Qd7) 25. gxh5 $18 {[%emt 0:05:04]} f5 $2 {[%emt 0:01:04]} (25... Ne6 26. Qg4 Nf4+ 27. Nxf4 exf4) 26. hxg6 {[%emt 0:00:22] White is clearly winning.} Nxe4 {[%emt 0:00:41]} 27. Qh5 {[%emt 0:01:20][%csl Gg6][%cal Rh5h7]} Bh8 {[%emt 0:00:43]} 28. f3 {[%emt 0:03:21]} Nc5 {[%emt 0:00:38]} 29. Qg5 {[%emt 0:00:13]} Qd7 {[%emt 0:02:32] Prevents Ne7+.} 30. h5 {[%emt 0:00:20][%cal Bh4h5,Bh5h6][%mdl 32] Threatens to win with h6.} Ne6 {[%emt 0:00:08]} 31. Qh4 {[%emt 0:00:06] Strongly threatening h6.} Kg7 {[%emt 0:05:21]} 32. h6+ {[%emt 0:03:38]} Kxg6 {[%emt 0:00:04]} 33. h7 {[%emt 0:00:20]} Ng7 {[%emt 0:01:58] Inhibits Qh5+.} 34. Kf2 {[%emt 0:05:22]} (34. Qg3+ $142 Kf7 35. Rh6) 34... Qe6 {[%emt 0:03:42] [#]} 35. Nc7 $1 {[%emt 0:01:10][%mdl 512] Weighted Error Value: White=0.10 (very precise) /Black=0.33} 1-0

[Event "Teplice Open 2022"]
[Site "Teplice"]
[Date "2022.06.25"]
[Round "8.5"]
[White "Postny, Evgeny"]
[Black "Yankelevich, Lev"]
[Result "0-1"]
[ECO "E11"]
[WhiteElo "2563"]
[BlackElo "2473"]
[Annotator "TA"]
[PlyCount "84"]
[EventDate "2022.06.18"]
[EventType "swiss"]
[EventCountry "CZE"]
[SourceTitle "playchess.com"]
[Source "ChessBase"]
[SourceQuality "1"]
[TimeControl "40/5400+30:1800+30"]

{[%evp 9,84,11,16,15,14,10,36,27,23,21,21,14,16,10,7,6,25,0,31,0,0,-11,-11,-11,-13,-12,0,0,0,0,0,0,0,-57,-60,-47,-52,-94,-10,-56,-56,-46,-78,-103,-104,-90,-90,-139,-123,-123,-123,-123,-123,-123,-121,-222,-143,-151,-150,-148,-144,-140,-129,-177,-103,-129,-89,-690,-686,-1052,-1022,-1898,-1477,-1379,-1358,-5518,-5487]} 1. d4 {[%emt 0:00:03]} Nf6 {[%emt 0:02:30]} 2. c4 {[%emt 0:00:30]} e6 {[%emt 0:00:30]} 3. Nf3 {[%emt 0:00:08]} Bb4+ {[%emt 0:00:12]} 4. Bd2 {[%emt 0:00:29]} a5 {[%emt 0:00:05]} 5. e3 {[%emt 0:02:09]} b6 {[%emt 0:01:16]} 6. Bd3 {[%emt 0:00:14] E11: Bogo-Indian.} Bb7 {[%emt 0:00:19]} 7. O-O {[%emt 0:01:18]} Bxd2 {[%emt 0:00:10] [#]} 8. Nbxd2 $146 {[%emt 0:00:15] White is slightly better.} ({Predecessor:} 8. Nfxd2 d6 9. Nc3 O-O 10. Nde4 Nbd7 11. Qf3 Rb8 12. Qh3 Nxe4 13. Nxe4 f5 14. Nc3 {1-0 (27) Jorgensen,D (2172)-Bjerre,J (2338) Ballerup 2017}) 8... O-O {[%emt 0:17:14]} 9. e4 {[%emt 0:02:23]} d6 {[%emt 0:00:03]} 10. Qe2 {[%emt 0:03:15]} Nfd7 {[%emt 0:08:36]} 11. Rfd1 {[%emt 0:12:47]} Nc6 {[%emt 0:14:09]} 12. Bc2 {[%emt 0:08:35]} a4 {[%emt 0:12:44]} 13. Nb1 {[%emt 0:05:00]} e5 {[%emt 0:04:09]} 14. d5 {[%emt 0:04:54]} Nb4 {[%emt 0:00:17]} 15. Qd2 {[%emt 0:00:35]} Nxc2 {[%emt 0:00:19]} 16. Qxc2 {[%emt 0:00:06]} Nc5 {[%emt 0:00:30][%cal Oc5b3]} 17. Nc3 {[%emt 0:00:21]} Bc8 {[%emt 0:00:06]} 18. b4 {[%emt 0:15:35]} axb3 $1 {[%emt 0:00:05]} 19. axb3 {[%emt 0:00:04]} Bg4 {[%emt 0:01:15]} 20. Rxa8 {[%emt 0:01:39]} Qxa8 {[%emt 0:00:04]} 21. b4 {[%emt 0:03:45]} (21. Nb5 $1 $11) 21... Bxf3 $15 {[%emt 0:00:04]} 22. gxf3 {[%emt 0:00:04]} Nd7 {[%emt 0:00:04]} 23. Kf1 {[%emt 0:04:20]} f5 {[%emt 0:06:00]} (23... Qd8 $17 24. Qd3 Qh4) 24. exf5 {[%emt 0:05:29]} (24. Nb5 $11 {should be considered.}) 24... Qe8 {[%emt 0:00:46]} 25. Ne4 {[%emt 0:16:14]} Qh5 {[%emt 0:00:38]} 26. Ng3 {[%emt 0:00:35]} Qxf3 {[%emt 0:00:11]} 27. Qd3 {[%emt 0:02:06]} Qg4 {[%emt 0:01:15] Black is more active.} 28. Ra1 {[%emt 0:03:06]} ({Better is} 28. Kg2) 28... h5 {[%emt 0:02:11]} 29. Qe4 {[%emt 0:00:31]} Qh3+ {[%emt 0:00:38]} 30. Qg2 {[%emt 0:00:09]} Qh4 {[%emt 0:03:19]} 31. Qe4 {[%emt 0:04:57]} Qxh2 {[%emt 0:00:10]} 32. Ra7 {[%emt 0:01:42]} (32. Ke2 $17 Nf6 33. Qh1 Qxh1 34. Rxh1) 32... Qh3+ {[%emt 0:06:58]} (32... h4 $2 33. Nh5 Qh3+ 34. Ke2 Qxf5 35. Qxf5 Rxf5 36. Ng3 hxg3 37. fxg3 $19) 33. Qg2 {[%emt 0:00:33]} Qg4 {[%emt 0:00:04][%cal Rg4d1]} 34. Qe4 {[%emt 0:00:15] [#]} Qd1+ {[%emt 0:01:58]} 35. Kg2 {[%emt 0:00:19]} Nf6 {[%emt 0:01:18]} 36. Qe2 {[%emt 0:01:49]} (36. Qh4 $17 {is a better defense.}) 36... Qd4 {[%emt 0:01:19]} ({Not} 36... Qxe2 37. Nxe2 Ne8 38. Ra8 $17) (36... Qb1 $19 {And now ...h4 would win.} 37. Nxh5 Qxf5 38. Nxf6+ Qxf6) 37. Rxc7 {[%emt 0:00:28] [#]} Qh4 {[%emt 0:01:34] Threatens to win with ...Ra8.} 38. Qe1 $2 {[%emt 0:01:47][%mdl 8192] This move loses the game for White.} (38. c5 $17) 38... Ra8 $19 {[%emt 0:00:17] Hoping for ...Ra3. Black is clearly winning.} ({Inferior is} 38... Ng4 39. Qh1 Qxh1+ 40. Kxh1 $11) ({Avoid the trap} 38... b5 $2 39. Rc6 $19) 39. Qb1 {[%emt 0:00:57]} Qd4 {[%emt 0:02:37] Prevents c5. aiming for ...h4.} 40. Rc6 {[%emt 0:00:30]} Ra1 {[%emt 0:00:59]} 41. Rc8+ {[%emt 0:03:14]} Kh7 {[%emt 0:00:08]} 42. Qc2 {[%emt 0:00:09]} h4 {[%emt 0:00:42] Weighted Error Value: White=0.57/Black=0.26 (precise)} 0-1

[Event "Teplice Open 2022"]
[Site "Teplice"]
[Date "2022.06.25"]
[Round "8.6"]
[White "Pranav, Anand"]
[Black "Laurusas, Tomas"]
[Result "*"]
[ECO "D12"]
[WhiteElo "2467"]
[BlackElo "2567"]
[Annotator "TA"]
[PlyCount "141"]
[EventDate "2022.06.18"]
[EventType "swiss"]
[EventCountry "CZE"]
[SourceTitle "playchess.com"]
[Source "ChessBase"]
[SourceQuality "1"]
[TimeControl "40/5400+30:1800+30"]

{[%evp 14,141,28,8,23,20,25,16,32,29,42,36,43,35,37,39,50,38,42,28,37,30,25,22,20,20,29,21,51,37,29,24,55,16,38,21,29,0,0,0,0,0,0,0,41,23,62,37,31,0,0,0,0,0,65,52,31,0,0,-22,-17,-52,-45,-83,-88,-649,0,0,0,0,0,0,0,0,0,0,0,0,0,0,0,0,0,0,0,-2,-3,-4,0,0,0,0,0,-77,-77,-106,-106,-106,-106,-106,-106,-106,-106,-106,-106,-106,0,-106,-105,-105,-75,-106,-106,-106,-71,-71,-64,-64,-64,-55,-58,-70,-70,-4133,-4133,-4133,-4133,-4133,-4133,-4133]} 1. d4 {[%emt 0:00:04]} d5 {[%emt 0:01:53]} 2. c4 {[%emt 0:00:07]} c6 {[%emt 0:00:08]} 3. Nf3 {[%emt 0:00:04]} Nf6 {[%emt 0:00:06]} 4. e3 {[%emt 0:00:03]} Bf5 {[%emt 0:00:06]} 5. Nc3 {[%emt 0:00:05]} e6 {[%emt 0:00:04]} 6. Nh4 {[%emt 0:00:02]} Bg6 {[%emt 0:00:05]} 7. Nxg6 {[%emt 0:00:11]} hxg6 {[%emt 0:00:07]} 8. Bd3 {[%emt 0:00:02] 8.Rb1 is a critical line.} Nbd7 {[%emt 0:00:18] D12: Slav Defence: 3 Nf3 Nf6 4 e3 Bf5.} 9. O-O {[%emt 0:00:19]} Bd6 {[%emt 0:00:56]} 10. h3 {[%emt 0:00:01]} O-O {[%emt 0:00:56] The position is equal.} 11. c5 {[%emt 0:00:21]} Bc7 {[%emt 0:06:57]} 12. b4 {[%emt 0:00:04][%cal Bb2b4,Bb4b5][%mdl 32]} e5 {[%emt 0:00:45]} 13. b5 {[%emt 0:00:28]} Ba5 {[%emt 0:08:42]} 14. Bd2 {[%emt 0:00:32]} Re8 {[%emt 0:02:39]} 15. Qa4 {[%emt 0:09:50] [#]} Re6 $146 {[%emt 0:05:06]} ({Predecessor:} 15... cxb5 16. Qxb5 b6 17. c6 Nf8 18. Rac1 exd4 19. exd4 Ne6 20. Qb2 Nxd4 21. Bf4 Nxc6 {½-½ (55) Parligras,M (2633)-Vasilev,M (2473) Plovdiv 2013}) 16. bxc6 {[%emt 0:01:49]} (16. Rac1 {with more complications.} exd4 17. exd4 Bxc3 18. Bxc3 Ne4 19. Bb4) 16... bxc6 {[%emt 0:00:12]} 17. Rab1 {[%emt 0:11:42]} exd4 {[%emt 0:02:42]} 18. exd4 {[%emt 0:00:15]} Bxc3 {[%emt 0:00:08]} 19. Bxc3 {[%emt 0:00:05]} Ne4 {[%emt 0:00:07]} 20. Ba5 {[%emt 0:01:33]} Qg5 {[%emt 0:09:46]} 21. Qc2 {[%emt 0:09:48]} (21. Bxe4 $5 dxe4 22. Bc7 $16) 21... Ndf6 {[%emt 0:14:24]} 22. Bc7 {[%emt 0:15:49]} Nh5 {[%emt 0:04:46]} 23. Qc1 {[%emt 0:08:56]} (23. Bxe4 $5 dxe4 24. Be5 $14) 23... Qh4 $1 {[%emt 0:08:43][%cal Oe4g3]} 24. Be2 {[%emt 0:04:07]} Neg3 {[%emt 0:07:18]} 25. Bg4 {[%emt 0:00:09]} (25. Bxg3 Nxg3 26. Bg4 Qxg4 $1 27. hxg4 Ne2+ 28. Kh2 Nxc1 29. Rfxc1 Re2 $11) (25. fxg3 $2 Qxd4+ 26. Kh1 Rxe2 $19) (25. Bxh5 $5 Nxh5 26. Be5 $14) 25... Ne2+ {[%emt 0:02:11]} 26. Bxe2 {[%emt 0:00:10]} Rxe2 {[%emt 0:00:02]} 27. Rb2 {[%emt 0:00:14]} Rae8 {[%emt 0:10:02]} 28. Be5 {[%emt 0:04:19]} Re4 {[%emt 0:04:05]} 29. Kh2 {[%emt 0:06:29]} Qe7 {[%emt 0:06:32]} 30. Qc3 {[%emt 0:03:11]} Qg5 {[%emt 0:00:30]} 31. Qd2 {[%emt 0:04:47]} R8xe5 {[%emt 0:01:45]} 32. dxe5 {[%emt 0:00:07]} Qxe5+ {[%emt 0:00:02]} 33. g3 {[%emt 0:01:37]} Nf6 {[%emt 0:01:58]} ({Black should play} 33... f5 $11) 34. Rfb1 {[%emt 0:00:53]} Nd7 {[%emt 0:01:24][%cal Bf6d7,Bd7e5,Be5d3][%mdl 32]} 35. Qa5 {[%emt 0:01:04] aiming for Qd8+.} Qf6 {[%emt 0:00:50] Inhibits Qd8+.} 36. Kg1 {[%emt 0:09:17]} Kh7 {[%emt 0:00:31]} 37. Qxa7 {[%emt 0:03:21]} Ne5 {[%emt 0:00:01]} 38. Qa8 {[%emt 0:00:57]} Nd3 {[%emt 0:00:39][%csl LRb2,LRc5]} 39. Rd2 {[%emt 0:00:07][%mdl 8192] [#]} (39. Qa3 $17 Nxb2 40. Qxb2) 39... Qf3 $2 {[%emt 0:01:31]} (39... Ne1 $1 $19 {( -> ...Qf3)} 40. Rb8 (40. Rb3 $2 Nf3+ 41. Rxf3 Qxf3 $19) 40... g5) 40. Qa6 $1 $11 {[%emt 0:02:33]} (40. Qxc6 {gets mated.} Ne1) 40... Rc4 {[%emt 0:00:59]} 41. Qxc6 {[%emt 0:09:56] Threatens to win with Qe8.} Qe4 {[%emt 0:14:25] Inhibits Qe8. Strongly threatening ...Nb4.} 42. Rxd3 {[%emt 0:05:55]} Qxd3 {[%emt 0:00:05][%mdl 4096] Endgame KQR-KQR} 43. Rf1 {[%emt 0:01:40]} d4 {[%emt 0:02:39]} 44. Qb5 {[%emt 0:06:37]} Qc2 {[%emt 0:02:52][%csl LRa2,LRc5] Hoping for ...d3.} 45. Qb3 {[%emt 0:00:09]} Qe2 {[%emt 0:00:46]} 46. Kg2 {[%emt 0:04:02][%cal Of1e1]} Rxc5 {[%emt 0:05:52]} 47. Qd1 {[%emt 0:00:06]} Qb2 {[%emt 0:03:23]} 48. Qb3 {[%emt 0:01:06]} Qe2 {[%emt 0:00:13]} 49. Qd1 {[%emt 0:00:02]} Qe5 {[%emt 0:00:25]} 50. Qf3 {[%emt 0:03:01]} f6 {[%emt 0:01:45]} 51. Rb1 {[%emt 0:01:27]} Rc2 {[%emt 0:00:59]} 52. a4 {[%emt 0:01:05]} Ra2 {[%emt 0:01:40]} 53. Qd3 {[%emt 0:02:55]} (53. Rb5 $11 {remains equal.} Qe8 54. Qd3 (54. Rb7 $2 Ra1 $19) 54... Qc6+ 55. Qf3) 53... Qd5+ $17 {[%emt 0:00:50]} 54. Qf3 {[%emt 0:00:07] [#]} Rxf2+ $3 {[%emt 0:00:06][%mdl 512]} 55. Kxf2 {[%emt 0:00:20]} Qa2+ {[%emt 0:00:01]} 56. Qe2 {[%emt 0:00:08]} Qxb1 {[%emt 0:00:02] KQ-KQ} 57. Qd2 {[%emt 0:01:07]} Qf5+ {[%emt 0:00:41]} 58. Kg2 {[%emt 0:00:01]} Qe4+ {[%emt 0:00:43]} 59. Kf2 {[%emt 0:00:19]} Qf5+ {[%emt 0:00:57]} 60. Kg2 {[%emt 0:00:02]} Qd5+ {[%emt 0:01:07]} 61. Kf2 {[%emt 0:00:08]} d3 {[%emt 0:00:57]} 62. a5 {[%emt 0:00:11]} Qd4+ {[%emt 0:00:06]} 63. Kf3 {[%emt 0:00:41]} Qd6 {[%emt 0:00:19]} 64. h4 {[%emt 0:00:59]} Kg8 {[%emt 0:00:21]} 65. Kf2 {[%emt 0:00:48]} Kf8 {[%emt 0:00:06]} 66. Kf3 {[%emt 0:00:26]} Ke7 {[%emt 0:00:42]} 67. Qe3+ {[%emt 0:01:05]} Kd8 {[%emt 0:00:15]} 68. Qb6+ $2 {[%emt 0:03:56][%mdl 8192]} (68. Qe4 $15) 68... Qxb6 $19 {[%emt 0:00:04] Black is clearly winning.} 69. axb6 {[%emt 0:00:00]} Kc8 {[%emt 0:00:02]} 70. Ke3 {[%emt 0:00:08]} Kb7 {[%emt 0:00:07]} 71. Kxd3 {[%emt 0:00:02] Weighted Error Value: White=0.17 (very precise) /Black=0.13 (very precise)} *

[Event "Teplice Open 2022"]
[Site "Teplice"]
[Date "2022.06.25"]
[Round "8.8"]
[White "Yilmazyerli, Mert"]
[Black "Berkes, Ferenc"]
[Result "1/2-1/2"]
[ECO "A11"]
[WhiteElo "2502"]
[BlackElo "2654"]
[Annotator "TA"]
[PlyCount "38"]
[EventDate "2022.06.18"]
[EventType "swiss"]
[EventCountry "CZE"]
[SourceTitle "playchess.com"]
[Source "ChessBase"]
[SourceQuality "1"]
[TimeControl "40/5400+30:1800+30"]

{[%evp 12,38,0,0,19,18,6,10,19,11,16,20,39,42,49,36,45,37,38,29,40,10,15,0,37,0,18,0,44]} 1. Nf3 {[%emt 0:12:52]} d5 {[%emt 0:00:11]} 2. g3 {[%emt 0:01:21]} Nf6 {[%emt 0:01:06]} 3. Bg2 {[%emt 0:00:09]} c6 {[%emt 0:00:10]} 4. c4 {[%emt 0:00:11]} dxc4 {[%emt 0:00:09]} 5. O-O {[%emt 0:00:17]} Nbd7 {[%emt 0:00:04]} 6. Na3 {[%emt 0:00:39]} Nb6 {[%emt 0:00:07]} 7. Qc2 {[%emt 0:00:04]} g6 {[%emt 0:00:07] A11: English Opening: 1...c6.} 8. Nxc4 {[%emt 0:00:05]} Nxc4 {[%emt 0:00:05]} 9. Qxc4 {[%emt 0:00:04]} Bg7 {[%emt 0:00:07]} 10. Re1 {[%emt 0:00:06]} O-O {[%emt 0:09:53]} 11. d4 {[%emt 0:01:57] [#]} Nd5 $146 {[%emt 0:07:12]} ({Predecessor:} 11... Ne4 12. Bf4 Be6 13. Qc2 f5 14. e3 Bd5 15. Ne5 Nf6 16. Nd3 Bxg2 17. Kxg2 Qd5+ {½-½ (50) Nepomniachtchi,I (2768)-Kobalia,M (2619) Satka 2018}) 12. e4 {[%emt 0:05:55]} Nb6 {[%emt 0:00:10]} 13. Qc2 {[%emt 0:01:20]} Bg4 {[%emt 0:13:08]} 14. Ne5 {[%emt 0:01:30]} Be6 {[%emt 0:00:49]} 15. Be3 {[%emt 0:02:25]} Qd6 {[%emt 0:04:52]} 16. Nf3 {[%emt 0:12:20]} Bg4 {[%emt 0:04:34]} 17. Ne5 {[%emt 0:11:36]} Be6 {[%emt 0:03:18]} 18. Nf3 {[%emt 0:02:26]} Bg4 {[%emt 0:04:32]} 19. Ne5 {[%emt 0:02:15]} Be6 {[%emt 0:01:24] Weighted Error Value: White=0.12 (very precise) /Black=0.05 (flawless)} 1/2-1/2